lending/lending_fUSD_20250429
["ID","MTS","AMOUNT","RATE_DAILY","PERIOD"]
[359294144,1745895902067,470.0,0.00038356,30]
[359294145,1745895902441,470.0,0.00038356,30]
[359294146,1745895903265,644.91,0.00038356,30]
[359294147,1745895903501,470.0,0.00038356,30]
[359294148,1745895904207,18468.11,0.00038356,30]
[359294149,1745895904674,470.0,0.00038356,30]
[359294150,1745895904978,32101.39,0.00038356,30]
[359294151,1745895906178,150.0,0.00038356,30]
[359294152,1745895909315,470.0,0.00038356,30]
[359294153,1745895910182,470.0,0.00038356,30]
[359294154,1745895911135,470.0,0.00038356,30]
[359294155,1745895911206,470.0,0.00038356,30]
[359294156,1745895912217,470.0,0.00038356,30]
[359294157,1745895913382,470.0,0.00038356,30]
[359294158,1745895916972,562.82,0.00038356,30]
[359294159,1745895917482,470.0,0.00038356,30]
[359294160,1745895918363,470.0,0.00038356,30]
[359294161,1745895919837,470.0,0.00038356,30]
[359294162,1745895921438,578.25142515,0.00038356,30]
[359294163,1745895921556,583.24,0.00038356,30]
[359294164,1745895921685,470.0,0.00038356,30]
[359294165,1745895923019,500.78381634,0.00038356,30]
[359294166,1745895923297,470.0,0.00038356,30]
[359294167,1745895923464,470.0,0.00038356,30]
[359294168,1745895925361,736.05,0.00038356,30]
[359294169,1745895925781,470.0,0.00038356,30]
[359294170,1745895927171,470.0,0.00038356,30]
[359294171,1745895927542,2511.91,0.00038356,30]
[359294172,1745895929983,470.0,0.00038356,30]
[359294173,1745895930477,470.0,0.00038356,30]
[359294174,1745895933099,470.0,0.00038356,30]
[359294175,1745895933406,470.0,0.00038356,30]
[359294176,1745895935126,470.0,0.00038356,30]
[359294177,1745895935193,470.0,0.00038356,30]
[359294178,1745895935434,470.0,0.00038356,30]
[359294179,1745895936648,962.39,0.00038356,30]
[359294180,1745895937776,470.0,0.00038356,30]
[359294181,1745895937820,470.0,0.00038356,30]
[359294182,1745895938847,470.0,0.00038356,30]
[359294183,1745895938891,470.0,0.00038356,30]
[359294184,1745895939620,576.5,0.00038356,30]
[359294185,1745895941320,537.78,0.00038356,30]
[359294186,1745895941669,470.0,0.00038356,30]
[359294187,1745895943017,470.0,0.00038356,30]
[359294188,1745895944994,470.0,0.00038356,30]
[359294189,1745895945304,470.0,0.00038356,30]
[359294190,1745895946181,8194.76,0.00038356,30]
[359294191,1745895947113,470.0,0.00038356,30]
[359294192,1745895947999,787.89,0.00038356,30]
[359294193,1745895949552,470.0,0.00038356,30]
[359294194,1745895949688,470.0,0.00038356,30]
[359294195,1745895954442,470.0,0.00038356,30]
[359294196,1745895954698,470.0,0.00038356,30]
[359294197,1745895956084,470.0,0.00038356,30]
[359294198,1745895956341,470.0,0.00038356,30]
[359294199,1745895956670,439.18002552,0.00038356,30]
[359294200,1745895956717,470.0,0.00038356,30]
[359294201,1745895957850,516.12,0.00038356,30]
[359294202,1745895958516,470.0,0.00038356,30]
[359294203,1745895960555,470.0,0.00038356,30]
[359294204,1745895962139,470.0,0.00038356,30]
[359294205,1745895962324,18502.5,0.00038356,30]
[359294206,1745895963052,470.0,0.00038356,30]
[359294207,1745895969132,470.0,0.00038356,30]
[359294208,1745895969700,470.0,0.00038356,30]
[359294209,1745895970190,470.0,0.00038356,30]
[359294210,1745895970975,470.0,0.00038356,30]
[359294211,1745895973625,470.0,0.00038356,30]
[359294212,1745895973669,470.0,0.00038356,30]
[359294213,1745895974155,470.0,0.00038356,30]
[359294214,1745895975204,910.39,0.00038356,30]
[359294215,1745895977255,470.0,0.00038356,30]
[359294216,1745895977400,470.0,0.00038356,30]
[359294217,1745895979379,470.0,0.00038356,30]
[359294218,1745895979862,470.0,0.00038356,30]
[359294219,1745895981994,470.0,0.00038356,30]
[359294220,1745895983315,470.0,0.00038356,30]
[359294221,1745895986504,470.0,0.00038356,30]
[359294222,1745895986845,470.0,0.00038356,30]
[359294223,1745895986888,470.0,0.00038356,30]
[359294224,1745895987617,8476.93,0.00038356,30]
[359294225,1745895990498,470.0,0.00038356,30]
[359294226,1745895990823,470.0,0.00038356,30]
[359294227,1745895991882,470.0,0.00038356,30]
[359294228,1745895993838,470.0,0.00038356,30]
[359294229,1745895994332,470.0,0.00038356,30]
[359294230,1745895994421,470.0,0.00038356,30]
[359294231,1745895994690,478.07,0.00038356,30]
[359294232,1745895995801,536.0,0.00038356,30]
[359294233,1745895996221,470.0,0.00038356,30]
[359294234,1745895997152,470.0,0.00038356,30]
[359294235,1745895997936,470.0,0.00038356,30]
[359294236,1745895998419,470.0,0.00038356,30]
[359294237,1745895998997,470.0,0.00038356,30]
[359294238,1745895999335,2119.5,0.00038356,30]
[359294239,1745895999590,470.0,0.00038356,30]
[359294240,1745896000642,470.0,0.00038356,30]
[359294241,1745896000931,470.0,0.00038356,30]
[359294242,1745896001136,470.0,0.00038356,30]
[359294243,1745896002374,706.14,0.00038356,30]
[359294244,1745896003026,470.0,0.00038356,30]
[359294245,1745896005373,470.0,0.00038356,30]
[359294246,1745896006991,470.0,0.00038356,30]
[359294247,1745896007043,470.0,0.00038356,30]
[359294248,1745896009085,470.0,0.00038356,30]
[359294250,1745896009748,470.0,0.00038356,30]
[359294251,1745896010184,470.0,0.00038356,30]
[359294252,1745896012388,470.0,0.00038356,30]
[359294253,1745896012479,470.0,0.00038356,30]
[359294254,1745896012649,1367.35,0.00038356,30]
[359294255,1745896014261,1263.23,0.00038356,30]
[359294256,1745896014341,470.0,0.00038356,30]
[359294257,1745896015207,470.0,0.00038356,30]
[359294258,1745896016707,2457.04,0.00038356,30]
[359294259,1745896018095,470.0,0.00038356,30]
[359294260,1745896018550,470.0,0.00038356,30]
[359294261,1745896020963,470.0,0.00038356,30]
[359294262,1745896021196,470.0,0.00038356,30]
[359294263,1745896022937,470.0,0.00038356,30]
[359294264,1745896024684,470.0,0.00038356,30]
[359294265,1745896024917,654.04,0.00038356,30]
[359294266,1745896025959,525.08,0.00038356,30]
[359294267,1745896026646,470.0,0.00038356,30]
[359294268,1745896029186,470.0,0.00038356,30]
[359294269,1745896029964,470.0,0.00038356,30]
[359294270,1745896032434,470.0,0.00038356,30]
[359294271,1745896033068,470.0,0.00038356,30]
[359294272,1745896033404,5658.78,0.00038356,30]
[359294273,1745896033590,470.0,0.00038356,30]
[359294274,1745896034861,576.69,0.00038356,30]
[359294275,1745896035975,1409.41,0.00038356,30]
[359294276,1745896039110,470.0,0.00038356,30]
[359294277,1745896041234,470.0,0.00038356,30]
[359294278,1745896041307,470.0,0.00038356,30]
[359294279,1745896041775,470.0,0.00038356,30]
[359294280,1745896044793,470.0,0.00038356,30]
[359294281,1745896046989,719.26,0.00038356,30]
[359294282,1745896048486,470.0,0.00038356,30]
[359294283,1745896049903,470.0,0.00038356,30]
[359294284,1745896050646,598.12,0.00038356,30]
[359294285,1745896051809,470.0,0.00038356,30]
[359294286,1745896051941,470.0,0.00038356,30]
[359294287,1745896052378,470.0,0.00038356,30]
[359294288,1745896053387,470.0,0.00038356,30]
[359294289,1745896053428,470.0,0.00038356,30]
[359294290,1745896055395,654.15,0.00038356,30]
[359294291,1745896055864,470.0,0.00038356,30]
[359294292,1745896056131,470.0,0.00038356,30]
[359294293,1745896058656,470.0,0.00038356,30]
[359294294,1745896058774,470.0,0.00038356,30]
[359294295,1745896060165,470.0,0.00038356,30]
[359294296,1745896060207,470.0,0.00038356,30]
[359294297,1745896060729,470.0,0.00038356,30]
[359294298,1745896060865,470.0,0.00038356,30]
[359294299,1745896062727,470.0,0.00038356,30]
[359294300,1745896064765,470.0,0.00038356,30]
[359294301,1745896064854,787.68,0.00038356,30]
[359294302,1745896064953,470.0,0.00038356,30]
[359294303,1745896066293,470.0,0.00038356,30]
[359294304,1745896067218,470.0,0.00038356,30]
[359294305,1745896067269,470.0,0.00038356,30]
[359294306,1745896067318,1929.68,0.00038356,30]
[359294307,1745896067371,470.0,0.00038356,30]
[359294308,1745896068519,473.05,0.00038356,30]
[359294309,1745896069256,470.0,0.00038356,30]
[359294310,1745896071219,1131.38,0.00038356,30]
[359294311,1745896075504,470.0,0.00038356,30]
[359294312,1745896076049,470.0,0.00038356,30]
[359294313,1745896077559,470.0,0.00038356,30]
[359294314,1745896077907,470.0,0.00038356,30]
[359294315,1745896080448,470.0,0.00038356,30]
[359294316,1745896080956,470.0,0.00038356,30]
[359294317,1745896082682,1082.11,0.00038356,30]
[359294318,1745896083537,470.0,0.00038356,30]
[359294319,1745896087539,470.0,0.00038356,30]
[359294320,1745896087917,470.0,0.00038356,30]
[359294321,1745896088817,470.0,0.00038356,30]
[359294322,1745896089853,470.0,0.00038356,30]
[359294323,1745896090377,648.09,0.00038356,30]
[359294324,1745896094137,470.0,0.00038356,30]
[359294325,1745896095020,470.0,0.00038356,30]
[359294326,1745896097210,470.0,0.00038356,30]
[359294327,1745896098784,488.3,0.00038356,30]
[359294328,1745896099875,470.0,0.00038356,30]
[359294329,1745896101323,470.0,0.00038356,30]
[359294330,1745896102341,470.0,0.00038356,30]
[359294331,1745896102586,470.0,0.00038356,30]
[359294332,1745896102945,470.0,0.00038356,30]
[359294333,1745896104389,537.22,0.00038356,30]
[359294334,1745896104975,470.0,0.00038356,30]
[359294335,1745896106432,470.0,0.00038356,30]
[359294336,1745896106734,470.0,0.00038356,30]
[359294337,1745896108087,470.0,0.00038356,30]
[359294338,1745896110115,611.15093728,0.00038356,30]
[359294339,1745896110433,470.0,0.00038356,30]
[359294340,1745896112687,470.0,0.00038356,30]
[359294341,1745896113524,269.56053514,0.00038356,30]
[359294342,1745896113638,470.0,0.00038356,30]
[359294343,1745896115313,470.0,0.00038356,30]
[359294344,1745896115953,470.0,0.00038356,30]
[359294345,1745896116017,470.0,0.00038356,30]
[359294348,1745896117931,470.0,0.00038356,30]
[359294349,1745896117990,470.0,0.00038356,30]
[359294350,1745896118147,502.18,0.00038356,30]
[359294351,1745896119943,470.0,0.00038356,30]
[359294352,1745896122135,470.0,0.00038356,30]
[359294353,1745896123299,470.0,0.00038356,30]
[359294354,1745896123504,470.0,0.00038356,30]
[359294355,1745896125705,470.0,0.00038356,30]
[359294356,1745896125974,797.57,0.00038356,30]
[359294357,1745896126056,470.0,0.00038356,30]
[359294358,1745896126452,470.0,0.00038356,30]
[359294359,1745896128244,470.0,0.00038356,30]
[359294360,1745896129776,1002.99,0.00038356,30]
[359294361,1745896130033,520.06,0.00038356,30]
[359294362,1745896131035,470.0,0.00038356,30]
[359294363,1745896131236,396.40512722,0.00038356,30]
[359294364,1745896132397,470.0,0.00038356,30]
[359294365,1745896132442,30763.83,0.00038356,30]
[359294366,1745896132495,470.0,0.00038356,30]
[359294367,1745896133248,470.0,0.00038356,30]
[359294368,1745896133301,470.0,0.00038356,30]
[359294369,1745896134458,470.0,0.00038356,30]
[359294370,1745896134756,575.4,0.00038356,30]
[359294371,1745896135580,470.0,0.00038356,30]
[359294372,1745896136351,470.0,0.00038356,30]
[359294373,1745896137567,470.0,0.00038356,30]
[359294374,1745896137815,17698.61,0.00038356,30]
[359294375,1745896138271,156.08076866,0.00038356,30]
[359294376,1745896140326,470.0,0.00038356,30]
[359294377,1745896140901,470.0,0.00038356,30]
[359294378,1745896142794,470.0,0.00038356,30]
[359294379,1745896142924,226.6322167,0.00038356,30]
[359294380,1745896143753,470.0,0.00038356,30]
[359294381,1745896143897,470.0,0.00038356,30]
[359294382,1745896144062,470.0,0.00038356,30]
[359294383,1745896145301,470.0,0.00038356,30]
[359294384,1745896146008,558.94,0.00038356,30]
[359294385,1745896147236,470.0,0.00038356,30]
[359294386,1745896147309,615.88,0.00038356,30]
[359294387,1745896148296,470.0,0.00038356,30]
[359294388,1745896148365,470.0,0.00038356,30]
[359294389,1745896149234,470.0,0.00038356,30]
[359294390,1745896150018,483.68,0.00038356,30]
[359294391,1745896150998,3186.28,0.00038356,30]
[359294392,1745896152636,470.0,0.00038356,30]
[359294393,1745896153722,470.0,0.00038356,30]
[359294394,1745896153920,1062.91,0.00038356,30]
[359294395,1745896154477,470.0,0.00038356,30]
[359294396,1745896156943,470.0,0.00038356,30]
[359294397,1745896157662,470.0,0.00038356,30]
[359294398,1745896159504,470.0,0.00038356,30]
[359294399,1745896159566,2407.24,0.00038356,30]
[359294400,1745896160104,253.76584878,0.00038356,30]
[359294401,1745896160860,470.0,0.00038356,30]
[359294402,1745896162719,470.0,0.00038356,30]
[359294403,1745896164224,470.0,0.00038356,30]
[359294404,1745896164282,470.0,0.00038356,30]
[359294405,1745896165213,470.0,0.00038356,30]
[359294406,1745896167995,922.29,0.00038356,30]
[359294407,1745896171380,482.01,0.00038356,30]
[359294408,1745896171627,470.0,0.00038356,30]
[359294409,1745896171733,470.0,0.00038356,30]
[359294410,1745896172009,470.0,0.00038356,30]
[359294411,1745896172355,470.0,0.00038356,30]
[359294412,1745896173154,470.0,0.00038356,30]
[359294413,1745896173330,470.0,0.00038356,30]
[359294414,1745896174709,470.0,0.00038356,30]
[359294415,1745896176504,470.0,0.00038356,30]
[359294416,1745896176890,470.0,0.00038356,30]
[359294417,1745896177718,470.0,0.00038356,30]
[359294418,1745896178031,7853.31,0.00038356,30]
[359294419,1745896178771,470.0,0.00038356,30]
[359294420,1745896179189,537.87464534,0.00038356,30]
[359294421,1745896179297,470.0,0.00038356,30]
[359294422,1745896179880,470.0,0.00038356,30]
[359294423,1745896181040,609.01,0.00038356,30]
[359294424,1745896181779,470.0,0.00038356,30]
[359294425,1745896182256,470.0,0.00038356,30]
[359294426,1745896183209,552.48,0.00038356,30]
[359294427,1745896185120,470.0,0.00038356,30]
[359294428,1745896186453,546.84,0.00038356,30]
[359294429,1745896187643,17731.56,0.00038356,30]
[359294430,1745896189328,470.0,0.00038356,30]
[359294431,1745896191891,289.11048264,0.00038356,30]
[359294432,1745896192144,470.0,0.00038356,30]
[359294433,1745896192462,470.0,0.00038356,30]
[359294442,1745896193872,470.0,0.00038356,30]
[359294443,1745896194019,470.0,0.00038356,30]
[359294444,1745896195251,470.0,0.00038356,30]
[359294445,1745896196274,872.46,0.00038356,30]
[359294446,1745896196544,470.0,0.00038356,30]
[359294447,1745896196828,300.0,0.00038356,30]
[359294448,1745896197624,470.0,0.00038356,30]
[359294449,1745896199280,470.0,0.00038356,30]
[359294450,1745896203980,470.0,0.00038356,30]
[359294451,1745896204037,470.0,0.00038356,30]
[359294452,1745896204160,470.0,0.00038356,30]
[359294453,1745896207293,470.0,0.00038356,30]
[359294454,1745896208013,8123.72,0.00038356,30]
[359294455,1745896213999,470.0,0.00038356,30]
[359294456,1745896214596,470.0,0.00038356,30]
[359294457,1745896214827,470.0,0.00038356,30]
[359294458,1745896215089,470.0,0.00038356,30]
[359294459,1745896216079,470.0,0.00038356,30]
[359294460,1745896217580,470.0,0.00038356,30]
[359294461,1745896218670,470.0,0.00038356,30]
[359294462,1745896220533,470.0,0.00038356,30]
[359294463,1745896220584,470.0,0.00038356,30]
[359294464,1745896220813,470.0,0.00038356,30]
[359294465,1745896221797,470.0,0.00038356,30]
[359294466,1745896223282,443.51002394,0.00038356,30]
[359294467,1745896224248,470.0,0.00038356,30]
[359294468,1745896224399,470.0,0.00038356,30]
[359294469,1745896225250,2031.19,0.00038356,30]
[359294470,1745896225623,470.0,0.00038356,30]
[359294471,1745896226309,487.24,0.00038356,30]
[359294472,1745896226568,470.0,0.00038356,30]
[359294473,1745896228223,470.0,0.00038356,30]
[359294474,1745896229583,470.0,0.00038356,30]
[359294475,1745896229720,470.0,0.00038356,30]
[359294476,1745896230288,470.0,0.00038356,30]
[359294477,1745896230494,461.62891839,0.00038356,30]
[359294478,1745896231199,470.0,0.00038356,30]
[359294490,1745896232034,-175.17512715,0.00021,2]
[359294491,1745896232044,-151.0,0.00024784,2]
[359294492,1745896232054,-207.4,0.00024784,2]
[359294493,1745896232063,-156.587,0.00026153,2]
[359294494,1745896232074,-215.0738,0.00026153,2]
[359294495,1745896232084,-709.19,0.00027397,2]
[359294496,1745896232095,-185.90859414,0.00027522,2]
[359294497,1745896232105,-223.0315306,0.00027522,2]
[359294498,1745896232115,-132.31688175,0.00028891,2]
[359294499,1745896232131,-98.96681548,0.00028891,2]
[359294500,1745896232141,-166.87,0.00029317,2]
[359294501,1745896232151,-212.47906838,0.00029999,2]
[359294502,1745896232163,-987.52093162,0.00029999,2]
[359294503,1745896232174,-300.0,0.00029999,2]
[359294504,1745896232185,-1965.67389175,0.0003,7]
[359294505,1745896232197,-1354.53410711,0.0003,7]
[359294506,1745896232214,-6879.79200114,0.0003,7]
[359294507,1745896232225,-239.84119403,0.0003026,2]
[359294508,1745896232235,-860.17,0.00030388,2]
[359294509,1745896232245,-2379.69639211,0.000309,9]
[359294510,1745896232256,-223.04,0.00031415,2]
[359294511,1745896232266,-2379.69639191,0.00031417,9]
[359294512,1745896232275,-150.0,0.00031488,7]
[359294513,1745896232285,-248.71531821,0.00031629,2]
[359294514,1745896232295,-1163.62517939,0.00031934,10]
[359294515,1745896232311,-1216.07121252,0.00031934,10]
[359294516,1745896232321,-250.0,0.00032157,2]
[359294517,1745896232331,-302.56,0.00032159,2]
[359294518,1745896232340,-420.0,0.00032332,3]
[359294519,1745896232350,-172.06,0.00032444,2]
[359294520,1745896232359,-1591.28605167,0.00032452,10]
[359294521,1745896232371,-322.98459677,0.00032452,10]
[359294522,1745896232395,-465.42574347,0.00032452,10]
[359294523,1745896232405,-860.17,0.00032652,2]
[359294524,1745896232419,-166.87,0.00032742,2]
[359294525,1745896232428,-2379.69639191,0.00032969,11]
[359294526,1745896232440,-63.38243828,0.00032998,2]
[359294623,1745896234502,514.9,0.00038356,30]
[359294624,1745896234771,438.88543282,0.00038356,30]
[359294625,1745896234845,470.0,0.00038356,30]
[359294626,1745896235230,2053.23,0.00038356,30]
[359294627,1745896235665,470.0,0.00038356,30]
[359294628,1745896236421,470.0,0.00038356,30]
[359294629,1745896237177,470.0,0.00038356,30]
[359294630,1745896237241,470.0,0.00038356,30]
[359294635,1745896238143,-194.5353467,0.00032998,2]
[359294636,1745896238157,-164.9646533,0.00032999,7]
[359294637,1745896238196,-240.95343318,0.00032999,7]
[359294638,1745896238206,-397.60662824,0.00032999,7]
[359294639,1745896238218,-102.73961101,0.00032999,7]
[359294640,1745896238228,-1981.32496017,0.00033,2]
[359294641,1745896238241,-147075.95108963,0.00033,2]
[359294642,1745896238250,-416.35409985,0.00033,2]
[359294643,1745896238261,-150.0,0.00033094,2]
[359294644,1745896238270,-709.19,0.00033165,2]
[359294645,1745896238279,-1852.42,0.00033258,2]
[359294646,1745896238289,-214.0,0.00033346,2]
[359294647,1745896238298,-500.0,0.00033346,7]
[359294648,1745896238308,-500.0,0.00033346,7]
[359294649,1745896238318,-212.62280881,0.00033346,7]
[359294650,1745896238327,-191.05875881,0.00033346,7]
[359294651,1745896238337,-1708.15962474,0.00033346,7]
[359294652,1745896238348,-191.34820118,0.00033346,7]
[359294654,1745896238357,-1708.15962474,0.00033346,7]
[359294656,1745896238367,-1708.15962474,0.00033346,7]
[359294657,1745896238376,-410.59201782,0.00033346,7]
[359294659,1745896238385,-1708.15962474,0.00033346,7]
[359294661,1745896238395,-293.99570718,0.00033346,7]
[359294663,1745896238404,-1708.15962474,0.00033346,7]
[359294665,1745896238413,-500.0,0.00033346,7]
[359294667,1745896238423,-1708.15962474,0.00033346,7]
[359294669,1745896238432,-1708.15962474,0.00033346,7]
[359294671,1745896238442,-1708.15962474,0.00033346,7]
[359294672,1745896238452,-1708.15962474,0.00033346,7]
[359294673,1745896238461,-1708.15962474,0.00033346,7]
[359294674,1745896238471,-1708.15962474,0.00033346,7]
[359294675,1745896238480,-1708.15962474,0.00033346,7]
[359294676,1745896238489,-1708.15962474,0.00033346,7]
[359294677,1745896238499,-1708.15962474,0.00033346,7]
[359294678,1745896238509,-1708.15962474,0.00033346,7]
[359294679,1745896238518,-1708.15962474,0.00033346,7]
[359294681,1745896238528,-1708.15962474,0.00033346,7]
[359294683,1745896238538,-1708.15962474,0.00033346,7]
[359294685,1745896238547,-1708.15962474,0.00033346,7]
[359294687,1745896238557,-1708.15962474,0.00033346,7]
[359294689,1745896238566,-1708.15962474,0.00033346,7]
[359294691,1745896238575,-1708.15962474,0.00033346,7]
[359294693,1745896238586,-1708.15962474,0.00033346,7]
[359294695,1745896238596,-1708.15962474,0.00033346,7]
[359294696,1745896238606,-1708.15962474,0.00033346,7]
[359294697,1745896238615,-1708.15962474,0.00033346,7]
[359294698,1745896238625,-1708.15962474,0.00033346,7]
[359294699,1745896238635,-1708.15962474,0.00033346,7]
[359294700,1745896238647,-2049.79154971,0.00033346,7]
[359294702,1745896238656,-1000.0,0.00033357,2]
[359294703,1745896238666,-496.53,0.0003338,2]
[359294705,1745896238675,-154.82,0.00033425,2]
[359294707,1745896238684,-2379.69639191,0.00033486,11]
[359294709,1745896238695,-200.0,0.00033504,2]
[359294711,1745896238704,-1460.856,0.00033529,2]
[359294713,1745896238715,-921.251,0.00033529,2]
[359294715,1745896238724,-554.322,0.00033529,2]
[359294717,1745896238733,-2095.692,0.00033529,2]
[359294719,1745896238742,-586.124,0.00033529,2]
[359294721,1745896238752,-156.316,0.00033529,2]
[359294723,1745896238762,-888.816,0.00033529,2]
[359294725,1745896238771,-6262.682,0.00033529,2]
[359294727,1745896238781,-3998.0,0.00033529,2]
[359294729,1745896238791,-877.0,0.00033529,2]
[359294731,1745896238800,-10651.41,0.00033535,2]
[359294733,1745896238810,-2571.0,0.000337,3]
[359294734,1745896238819,-150.0,0.00033717,2]
[359294736,1745896238828,-150.0,0.00033784,2]
[359294738,1745896238836,-2000.0,0.00033922,15]
[359294740,1745896238845,-200.0,0.00033922,10]
[359294741,1745896238854,-150.0,0.00033973,2]
[359294743,1745896238863,-150.0,0.00033973,2]
[359294745,1745896238872,-150.0,0.00033973,2]
[359294747,1745896238882,-1828.0,0.00034,2]
[359294749,1745896238891,-1828.0,0.00034,2]
[359294750,1745896238900,-1828.0,0.00034,2]
[359294751,1745896238910,-1828.0,0.00034,2]
[359294752,1745896238919,-1828.0,0.00034,2]
[359294753,1745896238929,-1828.0,0.00034,2]
[359294754,1745896238937,-1828.0,0.00034,2]
[359294755,1745896238946,-1828.0,0.00034,2]
[359294756,1745896238955,-1828.0,0.00034,2]
[359294757,1745896238964,-1828.0,0.00034,2]
[359294758,1745896238972,-5568.0,0.00034,5]
[359294759,1745896238981,-2379.69639191,0.00034003,11]
[359294760,1745896238990,-172.06,0.00034066,2]
[359294761,1745896238999,-398.814346,0.00034095,4]
[359294762,1745896239008,-150.0,0.00034301,2]
[359294763,1745896239019,-171.1,0.0003433,2]
[359294764,1745896239028,-267.46074303,0.00034367,2]
[359294765,1745896239037,-152.0,0.00034467,4]
[359294766,1745896239046,-2379.69639191,0.00034521,12]
[359294767,1745896239056,-150.0,0.00034548,10]
[359294768,1745896239065,-1000.0,0.0003459,2]
[359294769,1745896239074,-398.07319301,0.00034593,15]
[359294770,1745896239084,-17326.0443,0.0003469,2]
[359294771,1745896239093,-238.85622132,0.000347,2]
[359294772,1745896239103,-150.0,0.00034724,2]
[359294773,1745896239112,-548.49147288,0.00034786,2]
[359294774,1745896239122,-507.0,0.00034847,3]
[359294775,1745896239131,-604.08322518,0.0003487,2]
[359294776,1745896239141,-2789.36426688,0.0003487,2]
[359294777,1745896239157,-154.91898603,0.0003489,2]
[359294778,1745896239167,-860.17,0.00034915,2]
[359294779,1745896239177,-10458.76956219,0.0003496,2]
[359294780,1745896239254,470.0,0.00038356,30]
[359294840,1745896241480,1319.02,0.00038356,30]
[359294901,1745896242052,470.0,0.00038356,30]
[359294926,1745896243483,470.0,0.00038356,30]
[359294927,1745896243926,470.0,0.00038356,30]
[359294928,1745896245021,470.0,0.00038356,30]
[359294929,1745896245662,470.0,0.00038356,30]
[359294930,1745896246020,-150.0,0.00033978,2]
[359294931,1745896246029,-150.0,0.00034862,2]
[359294932,1745896246039,-9.46828284,0.0003496,2]
[359294933,1745896246075,-2447.28497122,0.0003496,2]
[359294934,1745896246549,470.0,0.00038356,30]
[359294972,1745896247532,1210.6,0.00038356,30]
[359294973,1745896248183,470.0,0.00038356,30]
[359294974,1745896248605,285.28870571,0.00038356,30]
[359294975,1745896249539,632.21,0.00038356,30]
[359294976,1745896249680,470.0,0.00038356,30]
[359294977,1745896249731,472.14,0.00038356,30]
[359294978,1745896250753,5422.99,0.00038356,30]
[359294979,1745896253246,470.0,0.00038356,30]
[359294980,1745896256097,470.0,0.00038356,30]
[359294981,1745896256143,470.0,0.00038356,30]
[359294982,1745896256190,470.0,0.00038356,30]
[359294983,1745896256806,470.0,0.00038356,30]
[359294984,1745896256859,676.72,0.00038356,30]
[359294985,1745896257987,1350.68,0.00038356,30]